Cogmind - Beta 14 @@@ ROGUE MODE // 2024.10.24 @ 21:35:58 Player: NextToZero Result: Self-destructed Performance ------------- Evolutions (1) 500 Regions Visited (3) 600 Robots Destroyed (15) 75 Value Destroyed (371) 371 Prototype IDs (3) 60 Alien Tech Used (0) 0 Bonus (0) 0 TOTAL SCORE: 1606 Bonus ------- None Cogmind --------- Core Integrity 230/400 Matter 300/300 Energy 100/100 System Corruption 0% Temperature Cool (0) Movement Core (250) Ox4 Location -9/Materials Parts ------- > --- POWER (1) -------- (None) > --- PROPULSION (3) --- (None) > --- UTILITY (3) ------ Medium Storage Unit Improved Terrain Scanner > --- WEAPON (2) ------- Light EM Pulse Cannon > --- INVENTORY (10) --- Light Ion Engine Heat Sink Large Matter Pod (150) Weight Redist. System Transport Network Coupler Light EM Pulse Cannon Light EM Pulse Cannon Light EM Pulse Cannon Grenade Launcher Peak State ------------ > --- POWER ------------ Light Nuclear Core > --- PROPULSION ------- Aluminum Leg Aluminum Leg > --- UTILITY ---------- Medium Storage Unit Experimental Sensor Array Improved Terrain Scanner > --- WEAPON ----------- Heavy EM Pulse Gun Grenade Launcher > --- INVENTORY -------- Ion Engine Heat Sink Large Matter Pod Weight Redist. System Transport Network Coupler Light EM Pulse Cannon Light EM Pulse Cannon Mining Laser [Rating: 22] Favorites ----------- Power Light Nuclear Core Engine Ion Engine Power Core Light Nuclear Core Propulsion Aluminum Leg Treads Light Treads Leg Aluminum Leg Utility Improved Terrain Scanner Device Improved Terrain Scanner Storage Medium Storage Unit Weapon Small Laser Energy Gun Small Laser Energy Cannon Light EM Pulse Cannon Launcher Grenade Launcher Special Weapon Mining Laser Build | -11 -10 -10 -9 ------- Run | Yrd Mat Min Mat Slots Evolved 2 | . . . 2 Power . | . . . . Propulsion 1 | . . . 1 Utility 1 | . . . 1 Weapon . | . . . . Parts Attached 33 | 8 12 4 9 Power 7 | 1 3 . 3 Engine 5 | 1 1 . 3 Core 2 | . 2 . . Reactor . | . . . . Propulsion 6 | 2 3 . 1 Treads 3 | 2 1 . . Leg 3 | . 2 . 1 Wheel . | . . . . Hover . | . . . . Flight . | . . . . Utility 9 | 2 3 3 1 Device 5 | 1 1 2 1 Storage 4 | 1 2 1 . Processor . | . . . . Hackware . | . . . . Protection . | . . . . Artifact . | . . . . Weapon 11 | 3 3 1 4 Energy Gun 7 | 3 3 . 1 Energy Cannon 2 | . . . 2 Ballistic Gun . | . . . . Ballistic Cannon . | . . . . Launcher 1 | . . 1 . Special Weapon 1 | . . . 1 Impact Weapon . | . . . . Slashing Weapon . | . . . . Piercing Weapon . | . . . . Special Melee Weapon . | . . . . Unidentified Prototypes 1 | . . 1 . Parts Lost 13 | . 5 . 8 Power 3 | . 1 . 2 Propulsion 5 | . 2 . 3 Utility 2 | . 1 . 1 Weapon 3 | . 1 . 2 Highest Loss Streak 6 | . 4 . 6 To Critical Strikes . | . . . . Average Slot Usage (%) 92 | . 90 100 88 Engine 4 | . 7 . 4 Core 8 | . 6 14 5 Treads 6 | . 18 . . Leg 18 | . 2 28 25 Device 15 | . 12 14 20 Storage 12 | . 14 14 11 Energy Gun 18 | . 27 18 11 Launcher 5 | . . 9 6 Peak Build Rating 22 | 9 11 18 22 Average Rating 14 | 6 9 15 20 On Entrance 9 | . 9 11 18 Naked Turns . | . . . . Heaviest Build 30 | 15 30 28 24 Greatest Support 40 | 40 40 26 30 Greatest Overweight (x) 9 | 2 9 1 7 Average Overweight (x) . | . . . . Largest Inventory Capacity 15 | 8 15 15 10 Average Capacity 10 | 6 12 10 10 Most Carried 10 | 5 9 10 10 Average Carried 8 | 3 6 9 9 Final Capacity 15 | 8 15 10 10 Final Carried 10 | 4 8 10 9 Class Distribution -------------------- 82% | Mutant 17% | Scavenger-Mutant Dominant Class ---------------- Mutant | -10/Materials Mutant | -10/Mines Mutant | -9/Materials Resources | -11 -10 -10 -9 ----------- Run | Yrd Mat Min Mat Matter Collected 709 | 253 219 112 125 Remotely . | . . . . Salvage Created 494 | 72 209 99 114 Parts 38 | 11 15 4 8 Haulers Intercepted . | . . . . Recyclers Shooed . | . . . . Parts Field Recycled . | . . . . Retrieved Matter . | . . . . Parts Self-Destructed . | . . . . Prevented . | . . . . Kills | -11 -10 -10 -9 ------- Run | Yrd Mat Min Mat Combat Hostiles Destroyed 9 | . 6 . 3 Melee 1 | . 1 . . Guns 5 | . 5 . . AOE 3 | . . . 3 Classes Destroyed 4 | 2 1 . 1 Worker 3 | 2 . . 1 Builder 1 | . . . 1 Tunneler 2 | 2 . . . Grunt 9 | . 6 . 3 Best Kill Streak 3 | 2 2 . 3 Combat Bots Only 2 | . 2 . 2 Max Kills in Single Turn 2 | 1 1 . 2 Gunslinging . | . . . . Exploded 1 | . . . 1 Melee 1 | . 1 . . Uniques/NPCs Destroyed . | . . . . Combat | -11 -10 -10 -9 -------- Run | Yrd Mat Min Mat Hostile Shots Fired 150 | . 63 . 87 Missed 42 | . 14 . 28 Damage Taken 1355 | . 612 . 743 Core 284 | . 114 . 170 Absorbed by Shields . | . . . . Core Remaining (%) 77 | 100 . 54 . Volleys Fired 56 | 9 29 2 16 Largest 2 | 2 2 2 2 Hottest 101 | 90 90 80 101 Shots Fired 102 | 18 57 4 23 Gun 94 | 18 57 4 15 Cannon 3 | . . . 3 Launcher 4 | . . . 4 Special 1 | . . . 1 Kinetic . | . . . . Thermal 52 | 9 38 4 1 Explosive 4 | . . . 4 Electromagnetic 46 | 9 19 . 18 Robot Hit Streak 14 | 3 7 10 14 Robot Miss Streak 3 | 2 3 . 2 Penetration Max . | . . . . Secondary Targets 1 | . 1 . . Max Gunslinging Chain 1 | . 1 . . Shots Hit Robots 63 | 10 35 3 15 Core Hits 27 | 4 13 2 8 Critical Kills . | . . . . Critical Parts Destroyed . | . . . . Critical Strikes . | . . . . Melee Attacks . | . . . . Impact . | . . . . Slashing . | . . . . Piercing . | . . . . Sneak Attacks . | . . . . Combat Hostiles . | . . . . Follow-up Attacks . | . . . . Damage Inflicted 990 | 141 474 34 341 Guns 762 | 141 455 34 132 Cannons 36 | . . . 36 Explosions 173 | . . . 173 Melee . | . . . . Ramming 19 | . 19 . . Kinetic . | . . . . Thermal 400 | 63 303 34 . Explosive 173 | . . . 173 Electromagnetic 398 | 78 152 . 168 Impact . | . . . . Slashing . | . . . . Piercing . | . . . . Highest Corruption . | . . . . Average Corruption . | . . . . Corruption Purged . | . . . . Corruption Blocked . | . . . . Overload Shots . | . . . . Overflow Damage 1 | . . . 1 Projectiles . | . . . . Explosions 1 | . . . 1 Melee . | . . . . Knockbacks . | . . . . Impact . | . . . . Kinetic . | . . . . Secondary . | . . . . Self-Inflicted Damage 26 | . . . 26 Shots 1 | . . . 1 Rammed 4 | . 4 . . Targets Rammed 5 | . 5 . . Kicked . | . . . . Crushed 1 | . 1 . . Highest Temperature 336 | 90 336 24 78 Average Temperature 80 | 41 106 14 22 Received Heat Transfer 507 | . 366 . 141 Effects 1 | . 1 . . Damage (minor) 1 | . 1 . . Siege Activations . | . . . . Robots Corrupted . | . . . . Combat Hostiles . | . . . . Parts Fried . | . . . . Impact Corruptions . | . . . . Robots Melted . | . . . . Combat Hostiles . | . . . . Parts Melted 1 | . 1 . . Heat Transferred 1053 | 185 793 75 . Parts Sabotaged . | . . . . Parts Stolen . | . . . . Parts Stripped . | . . . . Power Chain Reactions . | . . . . Alert | -11 -10 -10 -9 ------- Run | Yrd Mat Min Mat Peak Influence 200 | 20 111 25 200 Initial 15 | . 13 15 . Average 45 | 6 59 20 62 Maximum Alert Level 1 | . . . 1 Low Security (%) 99 | 100 100 100 98 Level 1 . | . . . 1 Level 2 . | . . . . Level 3 . | . . . . Level 4 . | . . . . Level 5 . | . . . . High Security . | . . . . Max Security . | . . . . Squads Dispatched 4 | . 3 . 1 Investigation 3 | . 2 . 1 Extermination . | . . . . Reinforcement 1 | . 1 . . Assault . | . . . . Garrison . | . . . . Intercept . | . . . . Searches Triggered . | . . . . Construction Impeded . | . . . . Haulers Reinforced . | . . . . Active Scanning Responses . | . . . . Cargo Convoy Interrupts . | . . . . Stealth | -11 -10 -10 -9 --------- Run | Yrd Mat Min Mat Distress Signals 1 | . 1 . . Communications Jammed . | . . . . Distress Signals . | . . . . Times Spotted 24 | . 9 . 15 Peak Tracking Total 6 | . 2 . 6 Tactical Retreats 2 | . . . 2 Traps | -11 -10 -10 -9 ------- Run | Yrd Mat Min Mat Traps Triggered 2 | . 2 . . Indirectly . | . . . . Trap Hack Attempts . | . . . . Triggered . | . . . . Disarmed . | . . . . Reprogrammed . | . . . . Reused . | . . . . Traps Extracted . | . . . . Installed . | . . . . Triggered . | . . . . Machines | -11 -10 -10 -9 ---------- Run | Yrd Mat Min Mat Machines Disabled 3 | . . . 3 Max in Single Turn 1 | . . . 1 Machines Repaired . | . . . . Machines Dismantled . | . . . . Machines Sabotaged . | . . . . Overloaded Fab Kills . | . . . . Hacking | -11 -10 -10 -9 --------- Run | Yrd Mat Min Mat Machines Accessed 8 | . 6 . 2 Terminals 7 | . 5 . 2 Fabricators . | . . . . Repair Stations . | . . . . Recycling Units 1 | . 1 . . Scanalyzers . | . . . . Garrison Access . | . . . . Total Hacks 22 | . 17 . 5 Successful 8 | . 7 . 1 Failed 14 | . 10 . 4 Catastrophic 3 | . 2 . 1 Database Lockouts . | . . . . Manual . | . . . . Terminals 21 | . 16 . 5 Fabricators . | . . . . Repair Stations . | . . . . Recycling Units 1 | . 1 . . Scanalyzers . | . . . . Garrison Access . | . . . . Terminal Hacks 7 | . 6 . 1 Record 1 | . 1 . . Prototype ID Bank 1 | . 1 . . Level Access Points 1 | . 1 . . Emergency Access Points 1 | . 1 . . Unreport Threat 1 | . 1 . . Locate Traps 1 | . . . 1 Zone Layout 1 | . 1 . . Fabricator Hacks . | . . . . Repair Station Hacks . | . . . . Recycling Unit Hacks 1 | . 1 . . Report Inventory 1 | . 1 . . Scanalyzer . | . . . . Garrison Access Hacks . | . . . . Unauthorized Hacks . | . . . . Terminals . | . . . . Fabricators . | . . . . Repair Stations . | . . . . Recycling Units . | . . . . Scanalyzers . | . . . . Garrison Access . | . . . . Data Cores Recovered . | . . . . Used . | . . . . Hacking Detections 7 | . 5 . 2 Full Trace Events 2 | . 1 . 1 Feedback Events . | . . . . Feedback Blocked . | . . . . Robot Schematics Acquired . | . . . . Robots Built . | . . . . Authchips . | . . . . Time . | . . . . Total Robot Build Rating . | . . . . Part Schematics Acquired . | . . . . Parts Built . | . . . . Authchips . | . . . . Time . | . . . . Total Part Build Rating . | . . . . Parts Repaired . | . . . . Time . | . . . . Parts Recycled . | . . . . Recycled Matter . | . . . . Retrieved Matter . | . . . . Retrieved Components . | . . . . Parts Scanalyzed . | . . . . Part Schematics Acquired . | . . . . Parts Damaged . | . . . . Bothacking | -11 -10 -10 -9 ------------ Run | Yrd Mat Min Mat Used RIF Installer . | . . . . Robots Hacked . | . . . . Non-combat . | . . . . Combat . | . . . . Robot Hacks Applied . | . . . . Relay Couplers Released . | . . . . Fabnet Peak Effective % . | . . . . Robots Rewired . | . . . . Allies Hacked . | . . . . Hacks Repelled . | . . . . Allies | -11 -10 -10 -9 -------- Run | Yrd Mat Min Mat Total Allies . | . . . . Largest Group . | . . . . Highest-Rated Group . | . . . . Highest-Rated Ally . | . . . . Total Orders . | . . . . Ally Attacks . | . . . . Total Damage . | . . . . Kills . | . . . . Allies Corrupted . | . . . . Allies Melted . | . . . . Intel | -11 -10 -10 -9 ------- Run | Yrd Mat Min Mat Robot Analysis Total . | . . . . Derelict Logs Recovered 1 | . . 1 . Drone Launches . | . . . . Drone Recoveries . | . . . . Exploration | -11 -10 -10 -9 ------------- Run | Yrd Mat Min Mat Turns Passed 1544 | 127 484 442 491 Spaces Moved 792 | 65 188 281 258 Core 40 | 36 3 . 1 Treads 191 | 29 162 . . Legs 561 | . 23 281 257 Wheels . | . . . . Hover . | . . . . Flight . | . . . . Fastest Speed 50 | 50 160 120 120 Average Speed 153 | 129 193 127 157 Slowest Speed 500 | 160 500 190 400 Overloaded Moves . | . . . . Propulsion Burnouts . | . . . . Robots Hopped . | . . . . Cave-ins Triggered . | . . . . Exploration Rate (%) 25 | 3 28 48 21 Regions Visited 3 Branch Regions 1 Pre-discovered Areas . | . . . . Known Exits Taken 1 | . . 1 . Unknown Exits Taken 2 | 1 1 . . Scrap Searched . | . . . . Spaces Dug 1 | . . . 1 Terrain Destroyed 22 | . . . 22 Melee . | . . . . Projectile 1 | . . . 1 AOE 21 | . . . 21 Terrain Rammed . | . . . . Walls Destroyed . | . . . . Machines Disabled . | . . . . Actions | -11 -10 -10 -9 --------- Run | Yrd Mat Min Mat Total 1008 | 88 246 359 315 Wait 88 | . . 65 23 Move 789 | 64 187 280 258 Hop . | . . . . Pick Up 24 | 7 7 5 5 Fast Attach 17 | 4 8 3 2 Attach 7 | 3 1 . 3 Detach 1 | . . 1 . Swap 9 | 1 3 1 4 Drop 12 | . 6 2 4 Fire 56 | 9 29 2 16 Melee . | . . . . Ram . | . . . . Kick . | . . . . Crush 5 | . 5 . . Escape Stasis . | . . . . Rewire . | . . . . Trap . | . . . . Miscellaneous . | . . . . Route ------- -11/Scrapyard -10/Materials (discovered 4 exits: *Mat x3 / [*Min]) -10/Mines -9/Materials History --------- Turn | Location | Event 17 | -11/Scrapyard | Discovered new exit (range 15) 128 | -11/Scrapyard | Entered Materials 238 | -10/Materials | Identified exit to Materials 300 | -10/Materials | Build established: Mutant 409 | -10/Materials | Lost 4 parts (1p1n1u1w) 587 | -10/Materials | Discovered new exit (range 13) 612 | -10/Materials | Entered Mines 742 | -10/Mines | YI-UF0 nonchalantly dropped a Grenade Launcher on the ground 743 | -10/Mines | Found a damaged Exp. Sensor Array with a note attached 746 | -10/Mines | Found Prototype Device 746 | -10/Mines | Identified Exp. Sensor Array 1054 | -10/Mines | Entered Materials 1054 | -9/Materials | Evolved 2 slots: Propulsion x1, Utility x1 1545 | -9/Materials | Self-destructed Last Messages --------------- 01352_ R-06 Scavenger collects Sml. Laser. 01355_ Acquired Aluminum Leg. 01357_ Acquired 14 matter. 01430_ Acquired 5 matter. 01436_ R-06 Scavenger collects Sml. Laser. 01441_ Acquired 15 matter. 01454_ R-06 Scavenger collects Corrupted Sml. Laser. 01467_ Mining Laser destroyed. 01475_ U-05 Engineer builds a Wall. 01519_ K-01 Serf cleans the Processing Tank. 01520_ Processing Tank disabled. 01524_ K-01 Serf collects debris. 01531_ Aluminum Leg destroyed. 01536_ Exp. Sensor Array destroyed. 01536_ Aluminum Leg destroyed. 01537_ M-13 Machinist repairs L-31 Rogue. 01541_ Aluminum Leg destroyed. 01542_ M-13 Machinist repairs S-10 Pest. 01544_ Ion Engine destroyed. 01544_ Hvy. EM Pulse Gun destroyed. Map ----- +----------------------------------------------------+ | ?????????????????????????????????????????????????? | | ?????????????????????????????????????????????????? | | ?????????????????????????????????????????????????? | | ?????????????????????????????????????????????????? | | ?????????????????????????????????????????????????? | | ?????????????????????????????????????????????????? | | ?????????????????????????????????????????????????? | | ?????????????????????????????????????????????????? | | ?????????????????????????????????????????????????? | | ?????????????????????????????????????????????????? | | ???????????????????????????? ????????????????????? | | ?????????????????????????????????????????????????? | | ?????????????????????????????????????????????????? | | ????????????????????##########???????????????????? | | ????????????????????# #???????????????????? | | ????????????????????# """ #?#?????????????????? | | ????????????????????# """ #???????????????????? | | ????????????????????# """ #??????? ???????????? | | ????????????????????# #???????????????????? | | ????????????????????# #?????"?????????????? | | ??????????????????#?# #???????????????????? | | ??????????????????#?# "T" #????""??#??#???????? | | ????????????????????# #???? ? # #??###### | | ???????????????????######+########+#### #### | | ???????????? ?????##???# | | ???????????????????????# @ | | ???????????????????????# l ss | | ??????????????????#????## s ########### | | ????????????????#??#???## m #?????#???## # | | ??????????????????#?##??# #???????#??# # | | ??????????????????####### #??#??????## # | | ?????????????????## ##########?# | | ?????????????????## # #?# | | ???????????? ?????# t k # """ #?# | | ??????????????????# """ # """ #?# | | ?????#? ??????????# kg""" # """ #?#! "" | | ??????????????????# ^^ "" # #?# "" | | ?????#???????? ???# ^^ """ + """ #?# "" | | ???/???????"??????# """ # """ #?# | | ??????????????????# # """ #?# | | ??????????????????# # #?# "" | | ??? ?###########??# ###+##############+##### "" | | ?????# ##??# %#= # #?#### "" | | ? ???# #?#?# # " % ###?# | | ?????# #???# "# ##??# | | ?????# ##### %# ##??# ###+#+####### | | ?????# / + ##?## ### #??? | | ?????# ##### # " % ##?## #?# #??? | | ? ??# #???# # ##??# #?# #?#? | | ?????# ] #???# # " ##?## #?# """ #??? | +----------------------------------------------------+ Best States ------------- Heat Dissipation 28 Energy Generation 14 Energy Capacity 250 Matter Stores 300 Matter Capacity 300 Sight Range 16 Robot Scan Range 20 Terrain Scan Range 16 Terrain Scan Density 10 Additional Mass Support 6 Evasion (%) 55 Recoil Reduction 2 Item Schematics ----------------- None Robot Schematics ------------------ None Fabricated ------------ Nothing Alien Tech Used ----------------- None Achievements -------------- None Challenges ------------ None Game ------ Seed DecoyCobblerArticulator Manual? 0 Play Time 00:18:51 Cumulative 14.0 hours Start 2024.10.21 @ 12:43:44 End 2024.10.24 @ 21:35:58 Sessions 7 Manual Loads 0 Difficulty Rogue Special Mode None Game No. 23 Rogue 23 Adventurer 0 Explorer 0 Win Type - Total 0 Types 0/0/0/0/0/0/0/0/0 Lore% 12 Gallery% 25 Achievement% 22 Wizard Run 0 Options --------- Layout 0 ASCII 0 Keyboard 0 Movement Mouse Keybinds 0 Fullscreen 1 Font 36/Smallcaps Map View 38x25 Zoom Use 18% Tactical HUD 1 Map Filters NONE Filters NONE Steam 1 RUN: 915b54ab-704a-41a6-be0e-72dfa9a44c17